Cogmind - Beta 14 @@@ ROGUE MODE // 2024.10.17 @ 20:53:30 Player: Fire Result: Destroyed by G-34 Mercenary with Small Laser Performance ------------- Evolutions (1) 500 Regions Visited (3) 600 Robots Destroyed (26) 130 Value Destroyed (633) 633 Prototype IDs (2) 40 Alien Tech Used (0) 0 Bonus (118) 118 TOTAL SCORE: 2021 Bonus ------- Follower Combat Kills 118 Cogmind --------- Core Integrity 0/400 Matter 290/300 Energy 100/100 System Corruption 0% Temperature Cool (6) Movement Core (700) Ox13 Location -9/Materials Parts ------- > --- POWER (1) -------- (None) > --- PROPULSION (3) --- (None) > --- UTILITY (3) ------ High-capacity Storage Unit > --- WEAPON (2) ------- Light Assault Rifle Light Assault Rifle > --- INVENTORY (20) --- Light Ion Engine Light Nuclear Core Improved Heat Sink Medium Storage Unit Small Battery (100) Medium Matter Pod (100) Large Matter Pod (150) High-capacity Matter Pod (200) Terrain Scan Processor Improved Terrain Scan Processor Light EM Pulse Cannon Grenade Launcher Peak State ------------ > --- POWER ------------ Heavy Ion Engine > --- PROPULSION ------- Aluminum Leg Aluminum Leg Aluminum Leg > --- UTILITY ---------- High-capacity Storage Unit Experimental Sensor Array Signal Interpreter > --- WEAPON ----------- Pulse Rifle Pulse Rifle > --- INVENTORY -------- Ion Engine Ion Engine Light Ion Engine Light Nuclear Core Improved Heat Sink Improved Heat Sink Medium Storage Unit Small Battery Medium Matter Pod Large Matter Pod High-capacity Matter Pod Terrain Scan Processor Improved Terrain Scan Processor Light EM Pulse Cannon Beam Cannon Beam Cannon Light Assault Rifle Light Assault Rifle Grenade Launcher [Rating: 25] Favorites ----------- Power Ion Engine Engine Ion Engine Propulsion Aluminum Leg Leg Aluminum Leg Utility High-capacity Storage Unit Device Experimental Sensor Array Storage High-capacity Storage Unit Processor Signal Interpreter Weapon Pulse Rifle Energy Gun Pulse Rifle Energy Cannon Beam Cannon Ballistic Gun Assault Rifle Build | -11 -10 -10 -9 ------- Run | Yrd Mat Min Mat Slots Evolved 2 | . . . 2 Power . | . . . . Propulsion 1 | . . . 1 Utility 1 | . . . 1 Weapon . | . . . . Parts Attached 43 | 6 8 10 19 Power 6 | 1 1 1 3 Engine 6 | 1 1 1 3 Core . | . . . . Reactor . | . . . . Propulsion 12 | 2 2 2 6 Treads . | . . . . Leg 12 | 2 2 2 6 Wheel . | . . . . Hover . | . . . . Flight . | . . . . Utility 12 | 1 3 4 4 Device 5 | . . 3 2 Storage 4 | 1 3 . . Processor 3 | . . 1 2 Hackware . | . . . . Protection . | . . . . Artifact . | . . . . Weapon 13 | 2 2 3 6 Energy Gun 6 | 1 2 1 2 Energy Cannon 4 | . . 2 2 Ballistic Gun 3 | 1 . . 2 Ballistic Cannon . | . . . . Launcher . | . . . . Special Weapon . | . . . . Impact Weapon . | . . . . Slashing Weapon . | . . . . Piercing Weapon . | . . . . Special Melee Weapon . | . . . . Unidentified Prototypes 2 | . . 1 1 Parts Lost 14 | . . 2 12 Power 2 | . . . 2 Propulsion 4 | . . 1 3 Utility 3 | . . . 3 Weapon 5 | . . 1 4 Highest Loss Streak 12 | . . 1 12 To Critical Strikes . | . . . . Average Slot Usage (%) 94 | . 98 99 88 Engine 12 | . 14 14 9 Leg 27 | . 27 27 26 Device 5 | . . 4 9 Storage 19 | . 27 23 11 Processor 3 | . . . 9 Energy Gun 18 | . 18 17 18 Energy Cannon 4 | . . 10 . Ballistic Gun 2 | . 9 . 2 Peak Build Rating 25 | 6 9 17 25 Average Rating 13 | 4 7 9 20 On Entrance 8 | . 6 9 17 Naked Turns . | . . . . Heaviest Build 55 | 14 53 55 55 Greatest Support 30 | 20 20 20 30 Greatest Overweight (x) 17 | 3 4 5 17 Average Overweight (x) 1 | . 1 2 1 Largest Inventory Capacity 20 | 8 20 20 20 Average Capacity 19 | 7 18 20 20 Most Carried 20 | 5 20 20 20 Average Carried 17 | 1 13 19 18 Final Capacity 20 | 8 20 20 20 Final Carried 20 | 2 20 18 12 Class Distribution -------------------- 85% | Mutant 14% | Scavenger-Mutant Dominant Class ---------------- Mutant | -10/Materials Mutant | -10/Mines Mutant | -9/Materials Resources | -11 -10 -10 -9 ----------- Run | Yrd Mat Min Mat Matter Collected 1411 | 250 124 319 718 Remotely . | . . . . Salvage Created 794 | . 124 179 491 Parts 43 | . 5 13 25 Haulers Intercepted . | . . . . Recyclers Shooed . | . . . . Parts Field Recycled . | . . . . Retrieved Matter . | . . . . Parts Self-Destructed . | . . . . Prevented . | . . . . Kills | -11 -10 -10 -9 ------- Run | Yrd Mat Min Mat Combat Hostiles Destroyed 20 | . 2 6 12 Guns 18 | . 2 6 10 Cannons 1 | . . . 1 Classes Destroyed 7 | . 2 2 3 Worker 1 | . . . 1 Tunneler 1 | . . 1 . Recycler 1 | . . . 1 Watcher 3 | . 1 . 2 Swarmer 7 | . . 4 3 Grunt 10 | . 2 2 6 Sentry 3 | . . . 3 Best Kill Streak 5 | . 3 3 5 Combat Bots Only 3 | . 2 2 3 Max Kills in Single Turn 2 | . 1 2 2 Gunslinging . | . . . . Exploded . | . . . . Melee . | . . . . Uniques/NPCs Destroyed . | . . . . Combat | -11 -10 -10 -9 -------- Run | Yrd Mat Min Mat Hostile Shots Fired 224 | . 19 49 156 Missed 64 | . 2 14 48 Damage Taken 2156 | . 227 397 1532 Core 572 | . 73 99 400 Absorbed by Shields . | . . . . Core Remaining (%) 65 | 100 . 31 . Volleys Fired 79 | . 13 18 48 Largest 2 | . 2 2 2 Hottest 126 | . 60 110 126 Shots Fired 145 | . 26 34 85 Gun 131 | . 26 29 76 Cannon 14 | . . 5 9 Launcher . | . . . . Special . | . . . . Kinetic 25 | . 13 . 12 Thermal 101 | . . 28 73 Explosive . | . . . . Electromagnetic 19 | . 13 6 . Robot Hit Streak 7 | . 5 4 7 Robot Miss Streak 5 | . 2 3 5 Penetration Max . | . . . . Secondary Targets 2 | . . 1 1 Max Gunslinging Chain 1 | . . 1 1 Shots Hit Robots 85 | . 16 18 51 Core Hits 33 | . 6 9 18 Critical Kills . | . . . . Critical Parts Destroyed . | . . . . Critical Strikes 3 | . . . 3 Burn 3 | . . . 3 Melee Attacks . | . . . . Impact . | . . . . Slashing . | . . . . Piercing . | . . . . Sneak Attacks . | . . . . Combat Hostiles . | . . . . Follow-up Attacks . | . . . . Damage Inflicted 1387 | . 222 295 870 Guns 1184 | . 222 231 731 Cannons 157 | . . 18 139 Explosions 46 | . . 46 . Melee . | . . . . Ramming . | . . . . Kinetic 133 | . 80 . 53 Thermal 1081 | . . 264 817 Explosive . | . . . . Electromagnetic 173 | . 142 31 . Impact . | . . . . Slashing . | . . . . Piercing . | . . . . Highest Corruption . | . . . . Average Corruption . | . . . . Corruption Purged . | . . . . Corruption Blocked . | . . . . Overload Shots . | . . . . Overflow Damage 5 | . . 5 . Projectiles . | . . . . Explosions 5 | . . 5 . Melee . | . . . . Knockbacks . | . . . . Impact . | . . . . Kinetic . | . . . . Secondary . | . . . . Self-Inflicted Damage 30 | . . 30 . Shots 1 | . . 1 . Rammed . | . . . . Targets Rammed . | . . . . Kicked . | . . . . Crushed . | . . . . Highest Temperature 676 | . 123 477 676 Average Temperature 174 | . 71 166 199 Received Heat Transfer 834 | . 123 156 555 Effects 31 | . . 3 28 Shutdowns 5 | . . 1 4 Energy Bleed 5 | . . 1 4 Interference 2 | . . . 2 Matter Decay 1 | . . . 1 Short Circuit 2 | . . . 2 Damage (minor) 2 | . . . 2 Damage (major) 13 | . . 1 12 Damage (core) 1 | . . . 1 Siege Activations . | . . . . Robots Corrupted . | . . . . Combat Hostiles . | . . . . Parts Fried . | . . . . Impact Corruptions . | . . . . Robots Melted 1 | . . . 1 Combat Hostiles 1 | . . . 1 Parts Melted 8 | . . 1 7 Heat Transferred 2640 | . . 679 1961 Parts Sabotaged . | . . . . Parts Stolen . | . . . . Parts Stripped . | . . . . Power Chain Reactions 1 | . . 1 . Alert | -11 -10 -10 -9 ------- Run | Yrd Mat Min Mat Peak Influence 197 | . 72 80 197 Initial . | . . . . Average 39 | . 37 16 65 Maximum Alert Level . | . . . . Low Security (%) 100 | 100 100 100 100 Level 1 . | . . . . Level 2 . | . . . . Level 3 . | . . . . Level 4 . | . . . . Level 5 . | . . . . High Security . | . . . . Max Security . | . . . . Squads Dispatched 4 | . . . 4 Investigation 3 | . . . 3 Extermination . | . . . . Reinforcement 1 | . . . 1 Assault . | . . . . Garrison . | . . . . Intercept . | . . . . Searches Triggered . | . . . . Construction Impeded . | . . . . Haulers Reinforced . | . . . . Active Scanning Responses . | . . . . Cargo Convoy Interrupts . | . . . . Stealth | -11 -10 -10 -9 --------- Run | Yrd Mat Min Mat Distress Signals 6 | . 1 . 5 Communications Jammed . | . . . . Distress Signals . | . . . . Times Spotted 38 | . 5 8 25 Peak Tracking Total 4 | . 3 3 4 Tactical Retreats 1 | . . . 1 Traps | -11 -10 -10 -9 ------- Run | Yrd Mat Min Mat Traps Triggered 3 | . 2 . 1 Indirectly . | . . . . Trap Hack Attempts . | . . . . Triggered . | . . . . Disarmed . | . . . . Reprogrammed . | . . . . Reused . | . . . . Traps Extracted . | . . . . Installed . | . . . . Triggered . | . . . . Machines | -11 -10 -10 -9 ---------- Run | Yrd Mat Min Mat Machines Disabled . | . . . . Max in Single Turn . | . . . . Machines Repaired . | . . . . Machines Dismantled . | . . . . Machines Sabotaged . | . . . . Overloaded Fab Kills . | . . . . Hacking | -11 -10 -10 -9 --------- Run | Yrd Mat Min Mat Machines Accessed 5 | . 2 . 3 Terminals 2 | . 1 . 1 Fabricators . | . . . . Repair Stations . | . . . . Recycling Units 3 | . 1 . 2 Scanalyzers . | . . . . Garrison Access . | . . . . Total Hacks 18 | . 4 . 14 Successful 13 | . 2 . 11 Failed 5 | . 2 . 3 Catastrophic 1 | . 1 . . Database Lockouts . | . . . . Manual . | . . . . Terminals 6 | . 2 . 4 Fabricators . | . . . . Repair Stations . | . . . . Recycling Units 12 | . 2 . 10 Scanalyzers . | . . . . Garrison Access . | . . . . Terminal Hacks 3 | . . . 3 Record 3 | . . . 3 Fabricator Hacks . | . . . . Repair Station Hacks . | . . . . Recycling Unit Hacks 10 | . 2 . 8 Recycle Component 2 | . . . 2 Process 2 | . . . 2 Report Inventory 3 | . 1 . 2 Retrieve Matter 1 | . . . 1 Retrieve Components 2 | . 1 . 1 Scanalyzer . | . . . . Garrison Access Hacks . | . . . . Unauthorized Hacks . | . . . . Terminals . | . . . . Fabricators . | . . . . Repair Stations . | . . . . Recycling Units . | . . . . Scanalyzers . | . . . . Garrison Access . | . . . . Data Cores Recovered . | . . . . Used . | . . . . Hacking Detections 3 | . 1 . 2 Full Trace Events 3 | . 1 . 2 Feedback Events . | . . . . Feedback Blocked . | . . . . Robot Schematics Acquired . | . . . . Robots Built . | . . . . Authchips . | . . . . Time . | . . . . Total Robot Build Rating . | . . . . Part Schematics Acquired . | . . . . Parts Built . | . . . . Authchips . | . . . . Time . | . . . . Total Part Build Rating . | . . . . Parts Repaired . | . . . . Time . | . . . . Parts Recycled 2 | . . . 2 Recycled Matter 118 | . . . 118 Retrieved Matter 59 | . . . 59 Retrieved Components 17 | . 7 . 10 Parts Scanalyzed . | . . . . Part Schematics Acquired . | . . . . Parts Damaged . | . . . . Bothacking | -11 -10 -10 -9 ------------ Run | Yrd Mat Min Mat Used RIF Installer . | . . . . Robots Hacked . | . . . . Non-combat . | . . . . Combat . | . . . . Robot Hacks Applied . | . . . . Relay Couplers Released . | . . . . Fabnet Peak Effective % . | . . . . Robots Rewired . | . . . . Allies Hacked . | . . . . Hacks Repelled . | . . . . Allies | -11 -10 -10 -9 -------- Run | Yrd Mat Min Mat Total Allies 3 | . . 3 . Largest Group 3 | . . 3 3 Highest-Rated Group 40 | . . 40 40 Highest-Rated Ally 16 | . . 16 16 Total Orders . | . . . . Ally Attacks 38 | . . . 38 Total Damage 337 | . . . 337 Kills 4 | . . . 4 Allies Corrupted . | . . . . Allies Melted . | . . . . Intel | -11 -10 -10 -9 ------- Run | Yrd Mat Min Mat Robot Analysis Total . | . . . . Derelict Logs Recovered 1 | . . 1 . Drone Launches . | . . . . Drone Recoveries . | . . . . Exploration | -11 -10 -10 -9 ------------- Run | Yrd Mat Min Mat Turns Passed 3232 | 113 623 1235 1261 Spaces Moved 1148 | 66 228 420 434 Core 36 | 18 . . 18 Treads . | . . . . Legs 1112 | 48 228 420 416 Wheels . | . . . . Hover . | . . . . Flight . | . . . . Fastest Speed 50 | 50 120 260 190 Average Speed 241 | 135 234 261 241 Slowest Speed 900 | 200 400 470 900 Overloaded Moves . | . . . . Propulsion Burnouts . | . . . . Robots Hopped . | . . . . Cave-ins Triggered . | . . . . Exploration Rate (%) 36 | 5 27 82 31 Regions Visited 3 Branch Regions 1 Pre-discovered Areas . | . . . . Known Exits Taken . | . . . . Unknown Exits Taken 3 | 1 1 1 . Scrap Searched 1 | . . 1 . Spaces Dug . | . . . . Terrain Destroyed 5 | . . 5 . Melee . | . . . . Projectile . | . . . . AOE 5 | . . 5 . Terrain Rammed . | . . . . Walls Destroyed . | . . . . Machines Disabled . | . . . . Actions | -11 -10 -10 -9 --------- Run | Yrd Mat Min Mat Total 1478 | 89 292 526 571 Wait 143 | 10 17 69 47 Move 1145 | 65 227 419 434 Hop . | . . . . Pick Up 47 | 8 25 3 11 Fast Attach 3 | . . 2 1 Attach 22 | 6 5 2 9 Detach 2 | . . 2 . Swap 18 | . 3 6 9 Drop 19 | . 2 5 12 Fire 79 | . 13 18 48 Melee . | . . . . Ram . | . . . . Kick . | . . . . Crush . | . . . . Escape Stasis . | . . . . Rewire . | . . . . Trap . | . . . . Miscellaneous . | . . . . Route ------- -11/Scrapyard -10/Materials (discovered 2 exits: *Mat / [*Min]) -10/Mines (discovered 2 exits: *Mat x2) -9/Materials (discovered 2 exits: *Mat / *Min) History --------- Turn | Location | Event 54 | -11/Scrapyard | Discovered new exit (range 12) 114 | -11/Scrapyard | Entered Materials 293 | -10/Materials | Discovered new exit (range 10) 316 | -10/Materials | Build established: Mutant 703 | -10/Materials | Discovered new exit (range 6) 737 | -10/Materials | Entered Mines 743 | -10/Mines | Met a Derelict bent on vengeance 1303 | -10/Mines | Discovered new exit (range 6) 1513 | -10/Mines | Core integrity fell below 50% 1755 | -10/Mines | Assisted by bots powering up and referring to "LRC-V3" 1877 | -10/Mines | Discovered new exit (range 8) 1923 | -10/Mines | Found a damaged Exp. Sensor Array with a note attached 1929 | -10/Mines | Found Prototype Device 1930 | -10/Mines | Identified Exp. Sensor Array 1972 | -10/Mines | Entered Materials 1972 | -9/Materials | Accompanied by 3 allies 1972 | -9/Materials | Evolved 2 slots: Propulsion x1, Utility x1 2222 | -9/Materials | Discovered new exit (range 7) 2236 | -9/Materials | Identified exit to Mines 2369 | -9/Materials | Discovered new exit (range 16) 2412 | -9/Materials | Identified exit to Materials 3025 | -9/Materials | Build established: Scavenger-Mutant 3073 | -9/Materials | Core integrity fell below 50% 3138 | -9/Materials | Lost 12 parts (2p3n3u4w) 3217 | -9/Materials | Core integrity fell below 20% 3233 | -9/Materials | Destroyed by G-34 Mercenary with Small Laser Last Messages --------------- R-06 Scavenger collects Wheel. K-01 Serf collects debris. Ion Engine destroyed. Imp. Heat Sink destroyed. K-01 Serf collects debris. G-34 Mercenary destroyed. K-01 Serf collects debris. Beam Cannon destroyed. K-01 Serf collects debris. Y-45 Defender destroyed. K-01 Serf collects debris. R-06 Scavenger collects Com. Wheel. K-01 Serf collects debris. R-06 Scavenger collects Heat Sink. K-01 Serf collects debris. Acquired 75 matter. R-06 Scavenger collects Sml. Storage Unit. R-06 Scavenger collects Aluminum Leg. W-16 Scout sends out distress signal. ALERT: Hostiles spotted, dispatching reinforcements to Terminal M011. Map ----- +----------------------------------------------------+ | ?????????????????????????????????????????????????? | | ?????????????????????????????????????????????????? | | ?????????????????????????????????????????????????? | | ?????????????????????????????????????????????????? | | ?????????????????????????????????????????????????? | | ?????????????????????????????????????????????????? | | ?????????????????????????????????????????????????? | | ?????????????????????????????????????????????????? | | ?????????????????????????????????????????????????? | | ?????????????????????????????????????????????????? | | ?????????????????????????????????????????????????? | | ?????????????????????????????????????????????????? | | ?????????????????????????????????????????????????? | | ?????????????????????????????????????????????????? | | ?????????????????????????????????????????????????? | | ?????????????????? ????#####?????????????????????? | | ?????????????????? ????? ! ??????????????????????? | | ???????????????### ##? ????????????????????? | | ??????????????? #? ????????????????????? | | ???????????????? +? ????????????????????? | | ???????????????? #??"" ""?????????????????????? | | ????????????????# #??"" ""?????????????????????? | | ????????????????# #???" "??????????????????????? | | ????????????????# #??? ??????????????????????? | | ?????????########% #???#/#??????????????????????? | | ????????## # #???#@#??????????????????????? | | ????????# *! ""# #?### ###????????????????????? | | ????????##!! Y"# ### #????????????????????? | | ???####### ""# #????????????????????? | | ???# ## # % #????????????????????? | | ???# ## #% % #????????????????????? | | ???# #####+###% ### #????????????????????? | | ???# ## %#?## ##????????????????????? | | ???# ## #??# #?????????????????????? | | ???# ## #??# #?????????????????????? | | ???# ## ######+#??# #?????????????????????? | | ???# ## # #??# g#?????????????????????? | | ???# ## %# #??#YY #?????????????????????? | | ??####+### + #??# #?????????????????????? | | ??# ^ %% % # #??? ?????????????????????? | | ### % # !!#??? ?????????????????????? | | % "T" #! = #??? ????????????????????? | | ### % ########???###+#????????????????????? | | ?## #???????????????????????????????????? | | ?## #???????????????????????????????????? | | ?## #???????????????????????????????????? | | ?## #???????????????????????????????????? | | ??# #???????????????????????????????????? | | ??# #### #???????????????????????????????????? | | ??### #####+#####????????????????????????????????? | +----------------------------------------------------+ Best States ------------- Heat Dissipation 42 Energy Generation 14 Energy Capacity 280 Matter Stores 477 Matter Capacity 500 Sight Range 16 Robot Scan Range 20 Terrain Scan Density 10 Evasion (%) 55 Item Schematics ----------------- None Robot Schematics ------------------ None Fabricated ------------ Nothing Alien Tech Used ----------------- None Achievements -------------- It's Just You Challenges ------------ None Game ------ Seed GravitonAssaultAutohacker Manual? 0 Play Time 00:38:58 Cumulative 4.7 hours Start 2024.10.17 @ 20:12:31 End 2024.10.17 @ 20:53:30 Sessions 1 Manual Loads 0 Difficulty Rogue Special Mode None Game No. 8 Rogue 8 Adventurer 0 Explorer 0 Win Type - Total 0 Types 0/0/0/0/0/0/0/0/0 Lore% 6 Gallery% 7 Achievement% 7 Wizard Run 0 Options --------- Layout 0 ASCII 0 Keyboard 0 Movement Mouse Keybinds 0 Fullscreen 2 Font 18/SmallcapsGlow Map View 38x25 Zoom Use 85% Tactical HUD 0 Map Filters NONE Filters NONE Steam 1 RUN: 54c01764-e071-45df-a21f-491a05a7e452